Cogmind - Beta 10.1 @@@ ROGUE MODE // 2020.09.23 @ 23:35:01 Player: Andru7428 Result: Destroyed by as-06400 with Assembled F-torch Performance ------------- Evolutions (0) 0 Regions Visited (2) 400 Robots Destroyed (20) 100 Value Destroyed (326) 326 Prototype IDs (0) 0 Alien Tech Used (0) 0 Bonus (0) 0 TOTAL SCORE: 826 Bonus ------- None Cogmind --------- Core Integrity 0/250 Matter 300/300 Energy 250/250 System Corruption 23% Temperature Cool (20) Movement Treading (160) Location -10/Mines Parts ------- > --- POWER (1) -------- Ion Engine > --- PROPULSION (2) --- Light Treads Light Treads > --- UTILITY (2) ------ Medium Storage Unit Large Storage Unit > --- WEAPON (2) ------- (None) > --- INVENTORY (14) --- Aluminum Leg Signal Interpreter Light Armor Plating Mining Laser Peak State ------------ > --- POWER ------------ Light Ion Engine > --- PROPULSION ------- Aluminum Leg Aluminum Leg > --- UTILITY ---------- Small Storage Unit Medium Storage Unit > --- WEAPON ----------- Particle Gun Assault Rifle > --- INVENTORY -------- Ion Engine Light Treads Light Treads Aluminum Leg Signal Interpreter Light Armor Plating Medium Laser Assault Rifle Light Assault Rifle Light Cannon [Rating: 9] Favorites ----------- Power Ion Engine Engine Ion Engine Propulsion Aluminum Leg Treads Light Treads Leg Aluminum Leg Utility Medium Storage Unit Storage Medium Storage Unit Weapon Assault Rifle Energy Gun Particle Gun Energy Cannon Beam Cannon Ballistic Gun Assault Rifle Ballistic Cannon Light Cannon Special Weapon Mining Laser Build | -11 -10 -10 ------- Run | Scr Mat Min Slots Evolved . | . . . Power . | . . . Propulsion . | . . . Utility . | . . . Weapon . | . . . Parts Attached 25 | 6 10 9 Power 4 | 1 2 1 Engine 4 | 1 2 1 Core . | . . . Reactor . | . . . Propulsion 5 | 2 1 2 Treads 2 | . . 2 Leg 3 | 2 1 . Wheel . | . . . Hover . | . . . Flight . | . . . Utility 3 | 1 2 . Device . | . . . Storage 3 | 1 2 . Processor . | . . . Hackware . | . . . Protection . | . . . Artifact . | . . . Weapon 13 | 2 5 6 Energy Gun 4 | 1 1 2 Energy Cannon 1 | . 1 . Ballistic Gun 5 | 1 3 1 Ballistic Cannon 1 | . . 1 Launcher . | . . . Special Weapon 2 | . . 2 Impact Weapon . | . . . Slashing Weapon . | . . . Piercing Weapon . | . . . Special Melee Weapon . | . . . Unidentified Prototypes . | . . . Parts Lost 11 | . 2 9 Power 2 | . 1 1 Propulsion 2 | . . 2 Utility . | . . . Weapon 7 | . 1 6 Highest Loss Streak 8 | . 1 8 Average Slot Usage (%) 97 | . 98 94 Engine 14 | . 14 14 Treads 2 | . . 9 Leg 25 | . 28 18 Storage 27 | . 26 28 Energy Gun 6 | . 8 2 Energy Cannon 4 | . 3 7 Ballistic Gun 14 | . 16 9 Naked Turns . | . . . Heaviest Build 33 | 11 33 33 Greatest Support 40 | 20 20 40 Greatest Overweight (x) 1 | 1 1 1 Average Overweight (x) . | . . . Largest Inventory Capacity 14 | 6 14 14 Average Capacity 10 | 5 10 14 Most Carried 10 | 6 10 10 Average Carried 8 | 3 8 7 Final Capacity 14 | 6 14 14 Final Carried 10 | 6 10 4 Class Distribution -------------------- 100% | Mutant Dominant Class ---------------- Mutant | -10/Materials Mutant | -10/Mines Resources | -11 -10 -10 ----------- Run | Scr Mat Min Matter Collected 644 | 117 372 155 Remotely . | . . . Salvage Created 469 | . 428 41 Parts 27 | . 27 . Haulers Intercepted 1 | . 1 . Recyclers Shooed . | . . . Parts Field Recycled . | . . . Retrieved Matter . | . . . Parts Self-Destructed . | . . . Prevented . | . . . Kills | -11 -10 -10 ------- Run | Scr Mat Min Combat Hostiles Destroyed 19 | . 13 6 Melee 1 | . . 1 Guns 15 | . 13 2 Cannons 3 | . . 3 Classes Destroyed 4 | . 3 1 Hauler 1 | . 1 . Swarmer 6 | . 6 . Grunt 7 | . 7 . Assembled 6 | . . 6 Best Kill Streak 7 | . 7 2 Combat Bots Only 7 | . 7 2 Max Kills in Single Turn 1 | . 1 1 Gunslinging . | . . . Exploded . | . . . Melee 1 | . . 1 Uniques/NPCs Destroyed . | . . . Combat | -11 -10 -10 -------- Run | Scr Mat Min Damage Taken 1315 | . 714 601 Core 251 | . 130 121 Absorbed by Shields . | . . . Core Remaining (%) 100 | 100 . . Volleys Fired 83 | . 56 27 Largest 2 | . 2 2 Hottest 200 | . 85 200 Shots Fired 159 | . 110 49 Gun 132 | . 98 34 Cannon 20 | . 12 8 Launcher . | . . . Special 7 | . . 7 Kinetic 98 | . 76 22 Thermal 61 | . 34 27 Explosive . | . . . Electromagnetic . | . . . Robot Hit Streak 9 | . 9 5 Robot Miss Streak 5 | . 4 5 Penetration Max . | . . . Secondary Targets 4 | . 4 . Max Gunslinging Chain 1 | . 1 . Shots Hit Robots 90 | . 63 27 Core Hits 36 | . 23 13 Critical Hits . | . . . Critical Kills . | . . . Critical Parts Destroyed . | . . . Melee Attacks . | . . . Impact . | . . . Slashing . | . . . Piercing . | . . . Sneak Attacks . | . . . Combat Hostiles . | . . . Follow-up Attacks . | . . . Damage Inflicted 985 | . 678 307 Guns 870 | . 678 192 Cannons 89 | . . 89 Explosions . | . . . Melee . | . . . Ramming 2 | . . 2 Kinetic 612 | . 464 148 Thermal 371 | . 214 157 Explosive . | . . . Electromagnetic . | . . . Impact . | . . . Slashing . | . . . Piercing . | . . . Highest Corruption 23 | . 3 23 Average Corruption 6 | . 1 9 Corruption Purged . | . . . Effects 19 | . 2 17 Message Errors 3 | . 2 1 Matter Fused 3 | . . 3 Energy Discharges 2 | . . 2 Parts Rejected 2 | . . 2 Misdirections 1 | . . 1 Targeting Errors 6 | . . 6 Weapon Failures 2 | . . 2 Overload Shots . | . . . Overflow Damage . | . . . Projectiles . | . . . Explosions . | . . . Melee . | . . . Knockbacks 1 | . . 1 Impact . | . . . Kinetic 1 | . . 1 Secondary . | . . . Self-Inflicted Damage . | . . . Shots . | . . . Rammed . | . . . Targets Rammed 1 | . . 1 Kicked . | . . . Crushed 1 | . . 1 Highest Temperature 328 | . 273 328 Average Temperature 98 | . 84 118 Received Heat Transfer 615 | . 255 360 Effects 3 | . 3 . Energy Bleed 1 | . 1 . Interference 2 | . 2 . Siege Activations . | . . . Robots Corrupted . | . . . Combat Hostiles . | . . . Parts Fried . | . . . Impact Corruptions . | . . . Robots Melted . | . . . Combat Hostiles . | . . . Parts Melted . | . . . Heat Transferred 938 | . 518 420 Parts Sabotaged . | . . . Parts Stolen . | . . . Parts Stripped . | . . . Power Chain Reactions . | . . . Missiles Intercepted . | . . . Alert | -11 -10 -10 ------- Run | Scr Mat Min Peak Influence 235 | . 235 91 Initial 91 | . . 91 Average 89 | . 119 33 Maximum Alert Level 1 | . 1 . Low Security (%) 84 | 100 76 100 Level 1 15 | . 23 . Level 2 . | . . . Level 3 . | . . . Level 4 . | . . . Level 5 . | . . . High Security . | . . . Max Security . | . . . Squads Dispatched 3 | . 3 . Investigation 1 | . 1 . Extermination . | . . . Reinforcement 2 | . 2 . Assault . | . . . Garrison . | . . . Intercept . | . . . Construction Impeded . | . . . Haulers Reinforced . | . . . Stealth | -11 -10 -10 --------- Run | Scr Mat Min Distress Signals 3 | . 3 . Communications Jammed . | . . . Distress Signals . | . . . Times Spotted 38 | . 22 16 Peak Tracking Total 7 | . 5 7 Tactical Retreats 5 | . 2 3 Traps | -11 -10 -10 ------- Run | Scr Mat Min Traps Triggered 3 | . 3 . Indirectly . | . . . Trap Hack Attempts . | . . . Triggered . | . . . Disarmed . | . . . Reprogrammed . | . . . Reused . | . . . Traps Extracted . | . . . Installed . | . . . Triggered . | . . . Machines | -11 -10 -10 ---------- Run | Scr Mat Min Machines Disabled . | . . . Max in Single Turn . | . . . Machines Sabotaged . | . . . Garrisons Compromised . | . . . Overloaded Fab Kills . | . . . Fab Network Shutdowns . | . . . Hacking | -11 -10 -10 --------- Run | Scr Mat Min Machines Accessed 4 | . 4 . Terminals 4 | . 4 . Fabricators . | . . . Repair Stations . | . . . Recycling Units . | . . . Scanalyzers . | . . . Garrison Access . | . . . Total Hacks 7 | . 7 . Successful 4 | . 4 . Failed 3 | . 3 . Catastrophic 2 | . 2 . Database Lockouts . | . . . Manual 2 | . 2 . Terminals 7 | . 7 . Fabricators . | . . . Repair Stations . | . . . Recycling Units . | . . . Scanalyzers . | . . . Garrison Access . | . . . Terminal Hacks 4 | . 4 . Alert Level 1 | . 1 . Locate Traps 1 | . 1 . Recall Reinforcements 1 | . 1 . Zone Layout 1 | . 1 . Fabricator Hacks . | . . . Repair Station Hacks . | . . . Recycling Unit Hacks . | . . . Scanalyzer . | . . . Garrison Access Hacks . | . . . Unauthorized Hacks . | . . . Terminals . | . . . Fabricators . | . . . Repair Stations . | . . . Recycling Units . | . . . Scanalyzers . | . . . Garrison Access . | . . . Data Cores Recovered . | . . . Used . | . . . Hacking Detections 3 | . 3 . Full Trace Events 1 | . 1 . Feedback Events . | . . . Feedback Blocked . | . . . Robot Schematics Acquired . | . . . Robots Built . | . . . Matter . | . . . Time . | . . . Total Robot Build Rating . | . . . Part Schematics Acquired . | . . . Parts Built . | . . . Matter . | . . . Time . | . . . Total Part Build Rating . | . . . Parts Repaired . | . . . Time . | . . . Parts Recycled . | . . . Recycled Matter . | . . . Retrieved Matter . | . . . Retrieved Components . | . . . Parts Scanalyzed . | . . . Part Schematics Acquired . | . . . Parts Damaged . | . . . Bothacking | -11 -10 -10 ------------ Run | Scr Mat Min Used RIF Installer . | . . . Robots Hacked . | . . . Non-combat . | . . . Combat . | . . . Robot Hacks Applied . | . . . Relay Couplers Released . | . . . Robots Rewired . | . . . Allies Hacked . | . . . Hacks Repelled . | . . . Allies | -11 -10 -10 -------- Run | Scr Mat Min Total Allies 3 | . . 3 Largest Group 3 | . . 3 Highest-Rated Group 40 | . . 40 Highest-Rated Ally 16 | . . 16 Total Orders . | . . . Ally Attacks 4 | . . 4 Total Damage 33 | . . 33 Kills . | . . . Allies Corrupted . | . . . Allies Melted . | . . . Intel | -11 -10 -10 ------- Run | Scr Mat Min Robot Analysis Total . | . . . Derelict Logs Recovered . | . . . Drone Launches . | . . . Drone Recoveries . | . . . Exploration | -11 -10 -10 ------------- Run | Scr Mat Min Turns Passed 1139 | 72 770 297 Spaces Moved 565 | 51 390 124 Core 12 | 12 . . Treads 25 | . . 25 Legs 528 | 39 390 99 Wheels . | . . . Hover . | . . . Flight . | . . . Fastest Speed 50 | 50 120 150 Average Speed 131 | 107 127 152 Slowest Speed 160 | 120 150 160 Overloaded Moves . | . . . Propulsion Burnouts . | . . . Robots Hopped . | . . . Cave-ins Triggered . | . . . Exploration Rate (%) 32 | 3 64 30 Regions Visited 2 Branch Regions 1 Pre-discovered Areas . | . . . Known Exits Taken . | . . . Unknown Exits Taken 2 | 1 1 . Scrap Searched 1 | . . 1 Spaces Dug . | . . . Terrain Destroyed 3 | . . 3 Melee . | . . . Projectile 3 | . . 3 AOE . | . . . Terrain Rammed . | . . . Walls Destroyed . | . . . Machines Disabled . | . . . Actions | -11 -10 -10 --------- Run | Scr Mat Min Total 795 | 68 557 170 Wait 89 | . 83 6 Move 563 | 50 389 124 Hop . | . . . Pick Up 27 | 12 12 3 Fast Attach 1 | . 1 . Attach 18 | 6 3 9 Detach . | . . . Swap 6 | . 6 . Drop 7 | . 7 . Fire 83 | . 56 27 Melee . | . . . Ram . | . . . Kick . | . . . Crush 1 | . . 1 Escape Stasis . | . . . Rewire . | . . . Trap . | . . . Miscellaneous . | . . . Route ------- -11/Scrapyard -10/Materials (discovered 3 exits: [*Mat x2] / [*Min]) -10/Mines History --------- Turn | Location | Event 24 | -11/Scrapyard | Discovered new exit (range 16) 73 | -11/Scrapyard | Entered Materials 302 | -10/Materials | Build established: Mutant 448 | -10/Materials | Discovered new exit (range 9) 464 | -10/Materials | Discovered new exit (range 15) 597 | -10/Materials | Destroyed 7 combat bots 614 | -10/Materials | Discovered new exit (range 12) 678 | -10/Materials | Core integrity fell below 50% 843 | -10/Materials | Entered Mines 843 | -10/Mines | Assisted by bots powering up and referring to "LRC-V3" 895 | -10/Mines | Assembled infested the area 900 | -10/Mines | Assisted by a Guerilla fighting off Assembled 1044 | -10/Mines | System corruption reached 10% 1047 | -10/Mines | Core integrity fell below 20% 1138 | -10/Mines | Lost 8 parts (1p2n5w) 1140 | -10/Mines | Destroyed by as-06400 with Assembled F-torch Last Messages --------------- 01063_ as-41628 knocked back. 01065_ System corrupted: Lgt. Cannon targeting data glitched. 01066_ System corrupted: Lgt. Cannon rejected. 01067_ Acquired 7 matter. 01071_ Acquired 17 matter. 01075_ Acquired Mining Laser. 01081_ Ion Engine destroyed. 01083_ as-61345 destroyed. 01087_ System corrupted: Matter fused (-8). 01090_ System corrupted: Mining Laser targeting data glitched. 01105_ System corrupted: Mining Laser rejected. 01105_ System corrupted: Mining Laser targeting data glitched. 01107_ Mining Laser destroyed. 01109_ Crushed as-41628. 01109_ as-41628 destroyed. 01112_ Acquired Mining Laser. 01116_ Acquired 59 matter. 01120_ System corrupted: Matter fused (-6). 01126_ Acquired 4 matter. 01134_ Acquired 2 matter. Map ----- +----------------------------------------------------+ | ??????????????????????????# ## #????? | | ??????????????????????????# #### ################ | | ??????????????????????????# #??# ![ | | ??????????????????????????# #### ! = | | ??????????????????????????# ################### | | ??????????????????????????#### #?????????????????? | | ?????????????????????????????# #?????????????????? | | ?????????????????????????????# #?????????????????? | | ?????????????????????????????# #?????????????????? | | ?????????????????????????????# #?????????????????? | | ?????????????????????????????# #?????????????????? | | ?????????????????????????????# #????????##???????? | | ????????????????????????????## ####" ????? | | ???????????????????########## ????? | | ?????????????# %!% ] ###### ????? | | ???????????????????########## #??????????????????? | | ?????????????????????????##?#=#??????????????????? | | ????????????????????????## ## #??????????????????? | | ????????????????????????# =# ##?????????????????? | | ??????????????## ???????# = "#?????????????????? | | ?????????????## ??????## ===##????????????????? | | ?????????????# ?????##" ##???????????????? | | ?????????????# #????#"# #???????????????? | | ??????????????# |% ###### #???????????????? | | ???????????????# ! ! !a= #???????????????? | | ????????????????# |=*%=@ a* ##???????????????? | | ????????????????# %!%###########????????????????? | | ???????????????# ???????????????????????????????? | | ?????????????????????????????????????????????????? | | ?????????????????????????????????????????????????? | | ?????????????????????????????????????????????????? | | ?????????????????????????????????????????????????? | | ?????????????????????????????????????????????????? | | ?????????????????????????????????????????????????? | | ?????????????????????????????????????????????????? | | ?????????????????????????????????????????????????? | | ?????????????????????????????????????????????????? | | ?????????????????????????????????????????????????? | | ?????????????????????????????????????????????????? | | ?????????????????????????????????????????????????? | | ?????????????????????????????????????????????????? | | ?????????????????????????????????????????????????? | | ?????????????????????????????????????????????????? | | ?????????????????????????????????????????????????? | | ?????????????????????????????????????????????????? | | ?????????????????????????????????????????????????? | | ?????????????????????????????????????????????????? | | ?????????????????????????????????????????????????? | | ?????????????????????????????????????????????????? | | ?????????????????????????????????????????????????? | +----------------------------------------------------+ Best States ------------- Heat Dissipation 25 Energy Generation 10 Energy Capacity 250 Matter Stores 300 Matter Capacity 300 Sight Range 16 Terrain Scan Density 10 Evasion (%) 40 Recoil Reduction 2 Item Schematics ----------------- None Robot Schematics ------------------ None Fabricated ------------ Nothing Alien Tech Used ----------------- None Achievements -------------- None Challenges ------------ None Game ------ Seed MassAutogunProjector Manual? 0 Play Time 00:16:27 Cumulative 60.8 hours Start 2020.09.23 @ 23:20:28 End 2020.09.23 @ 23:35:01 Sessions 1 Manual Loads 0 Difficulty Rogue Special Mode None Game No. 53 Rogue 53 Adventurer 0 Explorer 0 Win Type - Total 0 Types 0/0/0/0/0/0/0/0/0 Lore% 45 Gallery% 49 Achievement% 42 Wizard Run 0 Options --------- ASCII 0 Keyboard 0 Movement Mouse Keybinds 0 Fullscreen 1 Font 12/Smallcaps Map View 83x54 Tactical HUD 1 Map Filters NONE Filters NONE Steam 1 RUN: 2ba15ac0-35a0-4339-b79d-a8488f7a5de8